[Event "44th Chess Olympiad Women 2022"]
[Site "Chennai"]
[Date "2022.08.03"]
[Round "6.31"]
[White "Malikova, Marjona"]
[Black "Reid, Caitlin"]
[Result "1-0"]
[WhiteElo "1756"]
[BlackElo "1437"]
[Annotator "NA RC"]
[PlyCount "53"]
[EventDate "2022.??.??"]
[TimeControl "60"]

1. d4 {[%emt 0:00:10]} d5 {[%emt 0:00:05]} 2. c4 {[%emt 0:00:03]} c6 {[%emt 0:
00:00]} 3. cxd5 {[%emt 0:00:05]} cxd5 {[%emt 0:00:41]} 4. Bf4 {[%emt 0:00:09]}
Nc6 {[%emt 0:00:22]} 5. e3 {[%emt 0:00:19]} Nf6 {[%emt 0:00:32]} 6. Nc3 {
[%emt 0:00:10]} h6 {[%emt 0:00:27]} 7. Be2 {[%emt 0:01:23]} a6 {[%emt 0:01:37]}
8. h3 {[%emt 0:01:43]} Ne4 {[%emt 0:01:06]} 9. Nf3 {[%emt 0:06:00]} e6 {
[%emt 0:02:40]} 10. Nxe4 {[%emt 0:02:02]} dxe4 {[%emt 0:00:42]} 11. Nd2 {
[%emt 0:00:17]} Qa5 {[%emt 0:02:05]} 12. O-O {[%emt 0:01:17]} f5 {[%emt 0:00:
00]} 13. Nc4 {[%emt 0:02:33]} Qd8 {[%emt 0:00:32]} 14. Bh5+ {[%emt 0:00:43]}
Ke7 {[%emt 0:01:41]} 15. Bd6+ {[%emt 0:08:29]} Kf6 {[%emt 0:00:35]} 16. Be5+ {
[%emt 0:02:18]} Ke7 {[%emt 0:00:28]} 17. Nd6 {[%emt 0:04:45]} Rg8 {[%emt 0:00:
00]} 18. Bf7 {[%emt 0:01:27]} Rh8 {[%emt 0:00:06]} 19. Bg6 {[%emt 0:01:42]}
Nxe5 {[%emt 0:02:57]} 20. dxe5 {[%emt 0:00:14]} Qb6 {[%emt 0:00:58]} 21. Qh5 {
[%emt 0:05:51]} Kd7 {[%emt 0:00:41]} 22. Rac1 {[%emt 0:00:47]} Bxd6 {[%emt 0:
00:00]} 23. Rfd1 {[%emt 0:00:41]} Rf8 {[%emt 0:03:59]} 24. Rxd6+ {[%emt 0:00:
00]} Qxd6 {[%emt 0:00:08]} 25. exd6 {[%emt 0:00:05]} Kxd6 {[%emt 0:00:08]} 26.
Qd1+ {[%emt 0:00:24]} Ke5 {[%emt 0:00:29]} 27. Qd4# {[%emt 0:00:08]} 1-0

[Event "44th Chess Olympiad Women 2022"]
[Site "Chennai"]
[Date "2022.08.03"]
[Round "6.32"]
[White "Fawaz, Nadia"]
[Black "Ni Mhuireagain, Eibhia"]
[Result "*"]
[WhiteElo "1214"]
[BlackElo "1638"]
[Annotator "NA RC"]
[PlyCount "86"]
[EventDate "2022.??.??"]
[TimeControl "60"]

1. d4 {[%emt 0:00:08]} d5 {[%emt 0:00:06]} 2. Nf3 {[%emt 0:00:18]} Nf6 {
[%emt 0:00:10]} 3. Bf4 {[%emt 0:00:18]} c5 {[%emt 0:00:19]} 4. c3 {[%emt 0:00:
00]} Nc6 {[%emt 0:00:19]} 5. e3 {[%emt 0:00:44]} Qb6 {[%emt 0:00:33]} 6. Qb3 {
[%emt 0:01:35]} c4 {[%emt 0:00:42]} 7. Qxb6 {[%emt 0:01:04]} axb6 {[%emt 0:00:
00]} 8. Nbd2 {[%emt 0:02:14]} b5 {[%emt 0:01:00]} 9. Be2 {[%emt 0:02:13]} Bf5 {
[%emt 0:01:26]} 10. O-O {[%emt 0:02:33]} e6 {[%emt 0:02:04]} 11. Ne5 {[%emt 0:
00:00]} Nxe5 {[%emt 0:03:04]} 12. dxe5 {[%emt 0:00:43]} Nd7 {[%emt 0:02:21]}
13. Nf3 {[%emt 0:00:34]} Bg4 {[%emt 0:07:49]} 14. Nd4 {[%emt 0:00:53]} Bxe2 {
[%emt 0:00:29]} 15. Nxe2 {[%emt 0:00:13]} b4 {[%emt 0:01:17]} 16. b3 {[%emt 0:
00:00]} Rc8 {[%emt 0:08:31]} 17. cxb4 {[%emt 0:05:10]} cxb3 {[%emt 0:04:55]}
18. axb3 {[%emt 0:00:40]} Bxb4 {[%emt 0:00:17]} 19. Ra7 {[%emt 0:01:30]} Rb8 {
[%emt 0:14:01]} 20. Rc1 {[%emt 0:05:40]} Bc5 {[%emt 0:06:47]} 21. Ra2 {[%emt 0:
00:00]} O-O {[%emt 0:00:55]} 22. Rac2 {[%emt 0:00:59]} Bb6 {[%emt 0:02:57]} 23.
Nc3 {[%emt 0:03:53]} Nc5 {[%emt 0:09:38]} 24. Na4 {[%emt 0:07:50]} Nxa4 {
[%emt 0:00:38]} 25. bxa4 {[%emt 0:00:08]} Ra8 {[%emt 0:00:48]} 26. Rb2 {
[%emt 0:00:16]} Ra6 {[%emt 0:00:52]} 27. Rcb1 {[%emt 0:00:31]} Bc5 {[%emt 0:00:
00]} 28. Rxb7 {[%emt 0:00:40]} Rxa4 {[%emt 0:00:32]} 29. h3 {[%emt 0:01:49]}
Ra7 {[%emt 0:09:04]} 30. Rxa7 {[%emt 0:03:29]} Bxa7 {[%emt 0:00:05]} 31. Bg5 {
[%emt 0:02:54]} Rb8 {[%emt 0:03:31]} 32. Rxb8+ {[%emt 0:04:03]} Bxb8 {[%emt 0:
00:00]} 33. f4 {[%emt 0:01:27]} Ba7 {[%emt 0:01:18]} 34. Kf2 {[%emt 0:00:48]}
h6 {[%emt 0:04:36]} 35. Be7 {[%emt 0:00:21]} Kh7 {[%emt 0:01:10]} 36. Kf3 {
[%emt 0:01:53]} h5 {[%emt 0:01:47]} 37. Bb4 {[%emt 0:01:30]} Bb6 {[%emt 0:00:
00]} 38. Bc3 {[%emt 0:00:31]} Kh6 {[%emt 0:02:42]} 39. g4 {[%emt 0:07:30]}
hxg4+ {[%emt 0:01:41]} 40. hxg4 {[%emt 0:00:09]} g6 {[%emt 0:07:05]} 41. Bd4 {
[%emt 0:32:15]} Bd8 {[%emt 0:03:00]} 42. e4 {[%emt 0:00:00]} dxe4+ {[%emt 0:00:
00]} 43. Kxe4 {[%emt 0:00:00]} Be7 {[%emt 0:00:56]} *

[Event "44th Chess Olympiad Women 2022"]
[Site "Chennai"]
[Date "2022.08.03"]
[Round "6.32"]
[White "Grishina, Alexandra"]
[Black "O`Gorman, Alice"]
[Result "0-1"]
[WhiteElo "2012"]
[BlackElo "2043"]
[Annotator "NA RC"]
[PlyCount "98"]
[EventDate "2022.??.??"]
[TimeControl "60"]

1. d4 {[%emt 0:00:05]} d5 {[%emt 0:00:04]} 2. c4 {[%emt 0:00:45]} e6 {[%emt 0:
00:00]} 3. Nf3 {[%emt 0:00:44]} c6 {[%emt 0:00:12]} 4. Qd3 {[%emt 0:01:57]}
dxc4 {[%emt 0:00:58]} 5. Qxc4 {[%emt 0:00:27]} Nf6 {[%emt 0:00:26]} 6. Nc3 {
[%emt 0:02:42]} b5 {[%emt 0:02:16]} 7. Qb3 {[%emt 0:03:34]} Bb7 {[%emt 0:02:41]
} 8. g3 {[%emt 0:02:16]} Nbd7 {[%emt 0:01:36]} 9. Bg2 {[%emt 0:03:06]} b4 {
[%emt 0:04:33]} 10. Na4 {[%emt 0:05:35]} c5 {[%emt 0:01:48]} 11. Nxc5 {[%emt 0:
00:00]} Nxc5 {[%emt 0:00:23]} 12. dxc5 {[%emt 0:00:06]} Bxc5 {[%emt 0:00:41]}
13. Qa4+ {[%emt 0:07:03]} Qd7 {[%emt 0:00:55]} 14. Qxd7+ {[%emt 0:07:57]} Nxd7
{[%emt 0:00:08]} 15. Bf4 {[%emt 0:14:47]} e5 {[%emt 0:03:25]} 16. Bd2 {[%emt 0:
00:00]} O-O {[%emt 0:04:55]} 17. O-O {[%emt 0:01:12]} h6 {[%emt 0:04:20]} 18.
Rfd1 {[%emt 0:04:29]} e4 {[%emt 0:04:39]} 19. Nh4 {[%emt 0:10:25]} Nf6 {
[%emt 0:00:51]} 20. Rac1 {[%emt 0:02:58]} Bb6 {[%emt 0:04:16]} 21. Bxb4 {
[%emt 0:00:41]} Rfe8 {[%emt 0:03:49]} 22. Nf5 {[%emt 0:02:38]} Ba6 {[%emt 0:00:
00]} 23. Nd6 {[%emt 0:02:34]} Re6 {[%emt 0:05:32]} 24. e3 {[%emt 0:02:42]} Rd8
{[%emt 0:04:51]} 25. Nf5 {[%emt 0:00:57]} Nd5 {[%emt 0:05:01]} 26. Rxd5 {
[%emt 0:02:06]} Rxd5 {[%emt 0:00:07]} 27. Ne7+ {[%emt 0:00:02]} Rxe7 {[%emt 0:
00:00]} 28. Bxe7 {[%emt 0:00:03]} f5 {[%emt 0:04:08]} 29. h4 {[%emt 0:01:56]}
Rd2 {[%emt 0:02:48]} 30. Ba3 {[%emt 0:01:05]} g5 {[%emt 0:02:55]} 31. hxg5 {
[%emt 0:01:08]} hxg5 {[%emt 0:00:05]} 32. Rc6 {[%emt 0:00:29]} Kf7 {[%emt 0:00:
00]} 33. Rc1 {[%emt 0:00:35]} Bd3 {[%emt 0:04:42]} 34. Bf1 {[%emt 0:00:45]} f4
{[%emt 0:01:42]} 35. gxf4 {[%emt 0:01:06]} gxf4 {[%emt 0:00:07]} 36. Bxd3 {
[%emt 0:00:30]} exd3 {[%emt 0:00:41]} 37. Bc5 {[%emt 0:00:59]} Rc2 {[%emt 0:00:
00]} 38. Rd1 {[%emt 0:00:28]} Bxc5 {[%emt 0:01:14]} 39. Rxd3 {[%emt 0:00:05]}
fxe3 {[%emt 0:02:08]} 40. fxe3 {[%emt 0:00:18]} Rxb2 {[%emt 0:00:33]} 41. a3 {
[%emt 0:05:35]} Re2 {[%emt 0:01:13]} 42. Rd5 {[%emt 0:00:27]} Bxe3+ {[%emt 0:
00:00]} 43. Kf1 {[%emt 0:00:11]} Ra2 {[%emt 0:00:58]} 44. Ra5 {[%emt 0:00:15]}
Ke6 {[%emt 0:00:55]} 45. a4 {[%emt 0:00:58]} Bb6 {[%emt 0:00:38]} 46. Rh5 {
[%emt 0:01:27]} Rxa4 {[%emt 0:00:12]} 47. Ke2 {[%emt 0:00:08]} Rd4 {[%emt 0:00:
00]} 48. Ke1 {[%emt 0:00:39]} Kd6 {[%emt 0:00:23]} 49. Ke2 {[%emt 0:00:43]} Rd5
{[%emt 0:00:20]} 0-1

[Event "44th Chess Olympiad Women 2022"]
[Site "Chennai"]
[Date "2022.08.03"]
[Round "6.32"]
[White "Kanyamarala, Trisha"]
[Black "Mouradian, Knarik"]
[Result "1/2-1/2"]
[WhiteElo "2270"]
[BlackElo "2121"]
[Annotator "TA"]
[PlyCount "53"]
[EventDate "2022.??.??"]
[TimeControl "60"]

{[%evp 10,53,14,6,33,34,47,40,46,50,52,1,8,0,-2,-12,0,-54,-45,-41,18,-79,-84,
-58,-81,-133,-20,-25,-26,-50,-51,-86,-9,-52,-57,-58,0,-37,0,-24,0,-23,0,-24,0,
-10]} 1. d4 {[%emt 0:00:07]} d5 {[%emt 0:00:09]} 2. c4 {[%emt 0:00:11]} c6 {
[%emt 0:00:22]} 3. Nf3 {[%emt 0:00:15]} Nf6 {[%emt 0:00:21]} 4. Qb3 {[%emt 0:
00:00]} e6 {[%emt 0:08:16]} 5. Bg5 {[%emt 0:01:53]} dxc4 {[%emt 0:06:57]} 6.
Qxc4 {[%emt 0:00:19]} Qa5+ {[%emt 0:06:33] D30: Queen's Gambit Declined:
Systems without Nc3.} 7. Bd2 {[%emt 0:02:10]} Qc7 {[%emt 0:08:17]} 8. Nc3 {
[%emt 0:01:08]} Nbd7 {[%emt 0:01:23] White is slightly better.} 9. e4 {[%emt 0:
00:00] [#]} Be7 $146 {[%emt 0:10:43]} ({Predecessor:} 9... a6 10. e5 b5 11. Qb3
b4 12. Na4 Nd5 13. Rc1 Be7 14. Bd3 a5 15. O-O Ba6 16. Bxa6 Rxa6 {0-1 (62)
Vidit,S (2703)-Shankland,S (2713) Biel 2019}) 10. Bd3 {[%emt 0:04:49]} (10. e5
$14 Nb6 11. Qd3 (11. Nb5 Qd8 $15)) 10... e5 $1 $11 {[%emt 0:15:44]} 11. dxe5 {
[%emt 0:15:48]} Nxe5 {[%emt 0:03:18]} 12. Nxe5 {[%emt 0:01:09]} Qxe5 {[%emt 0:
00:00]} (12... Be6 {with more complications.} 13. Nb5 Qxe5 14. Qd4 Ng4) 13. Qb3
{[%emt 0:03:06]} (13. f4 $11 Qa5 14. Qb3) 13... O-O $1 $15 {[%emt 0:03:06]} 14.
Qc2 $1 {[%emt 0:01:41]} Bc5 {[%emt 0:05:46]} (14... Rd8 $15) 15. h3 {[%emt 0:
00:00]} (15. f3 $1 $11) 15... Rd8 $17 {[%emt 0:04:06]} 16. Be2 {[%emt 0:01:43]}
Nh5 {[%emt 0:05:36] Prevents f4.} 17. O-O-O {[%emt 0:04:07]} (17. Bxh5 $142
Qxh5 18. Ne2) 17... Be6 {[%emt 0:01:21]} (17... Bxf2 $17 {...Ng3 is the strong
threat.} 18. Rhf1 Bb6) 18. Bxh5 $11 {[%emt 0:03:51]} Qxh5 {[%emt 0:00:01]} 19.
g4 {[%emt 0:00:25]} Qh4 {[%emt 0:01:10]} 20. f4 {[%emt 0:00:42]} Bd4 {[%emt 0:
00:00]} (20... b6 $17 {Threatening ...Bc4.} 21. Na4 Bd4) 21. Kb1 {[%emt 0:00:
00]} Bc4 {[%emt 0:02:58]} 22. Be1 {[%emt 0:04:22] Inhibits Qg3.} Qe7 {[%emt 0:
00:00]} ({Black should play} 22... Qh6 $15 23. b3 Ba6) 23. e5 {[%emt 0:05:22]}
Bd5 {[%emt 0:02:50]} 24. Rf1 {[%emt 0:02:25]} Bc4 {[%emt 0:02:02] A strong
pair of Bishops.} (24... Bxc3 $5 25. Bxc3 a5 $11) 25. Rh1 {[%emt 0:03:38]} Bd5
{[%emt 0:00:06]} 26. Rf1 {[%emt 0:07:00]} Bc4 {[%emt 0:00:05]} (26... Bxc3 $5
27. Bxc3 a5 $11) 27. Rh1 {[%emt 0:07:11] Weighted Error Value: White=0.25 
(precise) /Black=0.28 (precise)} 1/2-1/2

[Event "44th Chess Olympiad Women 2022"]
[Site "Chennai"]
[Date "2022.08.03"]
[Round "6.32"]
[White "Putar, Lara"]
[Black "Bedrosian, Danielle"]
[Result "1-0"]
[WhiteElo "1969"]
[BlackElo "1662"]
[Annotator "NA RC"]
[PlyCount "80"]
[EventDate "2022.??.??"]
[TimeControl "60"]

1. d4 {[%emt 0:00:05]} Nf6 {[%emt 0:00:04]} 2. c4 {[%emt 0:00:03]} c5 {[%emt 0:
00:00]} 3. d5 {[%emt 0:00:29]} e5 {[%emt 0:00:12]} 4. Nc3 {[%emt 0:01:18]} d6 {
[%emt 0:00:10]} 5. e4 {[%emt 0:01:23]} Be7 {[%emt 0:00:24]} 6. f4 {[%emt 0:00:
00]} exf4 {[%emt 0:04:58]} 7. Bxf4 {[%emt 0:00:29]} Nbd7 {[%emt 0:10:12]} 8.
Be2 {[%emt 0:05:25]} Nf8 {[%emt 0:06:55]} 9. Nf3 {[%emt 0:05:40]} Ng6 {[%emt 0:
00:00]} 10. Bd2 {[%emt 0:05:05]} Nh5 {[%emt 0:24:38]} 11. O-O {[%emt 0:04:53]}
Nhf4 {[%emt 0:07:05]} 12. e5 {[%emt 0:10:37]} O-O {[%emt 0:09:50]} 13. exd6 {
[%emt 0:14:24]} Bxd6 {[%emt 0:01:19]} 14. g3 {[%emt 0:09:42]} Nxe2+ {[%emt 0:
00:00]} 15. Qxe2 {[%emt 0:00:19]} h6 {[%emt 0:02:31]} 16. Be3 {[%emt 0:10:28]}
Bh3 {[%emt 0:03:34]} 17. Rf2 {[%emt 0:04:01]} Qd7 {[%emt 0:02:30]} 18. Ne4 {
[%emt 0:01:43]} Rae8 {[%emt 0:04:03]} 19. Nfd2 {[%emt 0:09:40]} f5 {[%emt 0:00:
00]} 20. Nxd6 {[%emt 0:02:30]} Qxd6 {[%emt 0:00:02]} 21. Qd3 {[%emt 0:03:46]}
f4 {[%emt 0:01:54]} 22. Bxf4 {[%emt 0:01:40]} Nxf4 {[%emt 0:00:09]} 23. gxf4 {
[%emt 0:00:18]} Bf5 {[%emt 0:00:40]} 24. Qg3 {[%emt 0:00:39]} Rf6 {[%emt 0:00:
00]} 25. Rg2 {[%emt 0:00:49]} Rg6 {[%emt 0:00:09]} 26. Qf3 {[%emt 0:00:31]}
Rxg2+ {[%emt 0:00:07]} 27. Kxg2 {[%emt 0:00:29]} Qg6+ {[%emt 0:00:18]} 28. Kf2
{[%emt 0:01:31]} Bg4 {[%emt 0:01:05]} 29. Rg1 {[%emt 0:00:38]} Qc2 {[%emt 0:00:
00]} 30. Qc3 {[%emt 0:01:20]} Re2+ {[%emt 0:00:36]} 31. Kg3 {[%emt 0:00:54]}
Bf5 {[%emt 0:00:57]} 32. Qxc2 {[%emt 0:00:21]} Bxc2 {[%emt 0:00:03]} 33. Nf3 {
[%emt 0:00:21]} Kf7 {[%emt 0:01:22]} 34. Ne5+ {[%emt 0:00:04]} Ke7 {[%emt 0:00:
00]} 35. Kf3 {[%emt 0:00:26]} Rxh2 {[%emt 0:00:54]} 36. Rxg7+ {[%emt 0:00:10]}
Ke8 {[%emt 0:00:40]} 37. Rxb7 {[%emt 0:00:22]} Bd1+ {[%emt 0:00:55]} 38. Kg3 {
[%emt 0:00:07]} Rh1 {[%emt 0:00:11]} 39. d6 {[%emt 0:00:16]} Rg1+ {[%emt 0:00:
00]} 40. Kf2 {[%emt 0:00:07]} Rg7 {[%emt 0:00:08]} 1-0

[Event "44th Chess Olympiad Women 2022"]
[Site "Chennai"]
[Date "2022.08.03"]
[Round "6.33"]
[White "Ning, Isabelle Yixuan"]
[Black "Azhar, Puteri Rifqah Fahad"]
[Result "0-1"]
[WhiteElo "1853"]
[BlackElo "1940"]
[Annotator "NA RC"]
[PlyCount "94"]
[EventDate "2022.??.??"]
[TimeControl "60"]

1. d4 {[%emt 0:00:06]} f5 {[%emt 0:00:33]} 2. Bf4 {[%emt 0:00:19]} Nf6 {
[%emt 0:00:45]} 3. e3 {[%emt 0:00:13]} e6 {[%emt 0:00:24]} 4. Nf3 {[%emt 0:00:
00]} Be7 {[%emt 0:00:18]} 5. c4 {[%emt 0:00:48]} Ne4 {[%emt 0:01:16]} 6. Nc3 {
[%emt 0:02:39]} d5 {[%emt 0:01:20]} 7. Rc1 {[%emt 0:02:15]} c6 {[%emt 0:00:40]}
8. Be2 {[%emt 0:02:22]} O-O {[%emt 0:01:53]} 9. O-O {[%emt 0:04:18]} g5 {
[%emt 0:12:16]} 10. Be5 {[%emt 0:02:08]} Nd7 {[%emt 0:08:29]} 11. cxd5 {
[%emt 0:04:11]} Nxc3 {[%emt 0:02:00]} 12. bxc3 {[%emt 0:03:08]} exd5 {[%emt 0:
00:00]} 13. c4 {[%emt 0:06:32]} g4 {[%emt 0:01:25]} 14. Ne1 {[%emt 0:01:45]}
Nxe5 {[%emt 0:00:35]} 15. dxe5 {[%emt 0:00:20]} Be6 {[%emt 0:00:34]} 16. Nc2 {
[%emt 0:06:57]} c5 {[%emt 0:01:41]} 17. Na3 {[%emt 0:02:54]} d4 {[%emt 0:07:54]
} 18. exd4 {[%emt 0:06:43]} cxd4 {[%emt 0:00:40]} 19. Qd3 {[%emt 0:09:47]} Qc7
{[%emt 0:08:40]} 20. Nb5 {[%emt 0:10:05]} Qxe5 {[%emt 0:01:48]} 21. Qxd4 {
[%emt 0:02:44]} Qxd4 {[%emt 0:01:38]} 22. Nxd4 {[%emt 0:00:13]} Bd7 {[%emt 0:
00:00]} 23. c5 {[%emt 0:04:37]} Rf6 {[%emt 0:14:26]} 24. Rfe1 {[%emt 0:03:15]}
Rc8 {[%emt 0:07:29]} 25. Bb5 {[%emt 0:09:11]} Bxb5 {[%emt 0:05:08]} 26. Rxe7 {
[%emt 0:00:28]} Bc6 {[%emt 0:00:21]} 27. g3 {[%emt 0:03:50]} Be4 {[%emt 0:00:
00]} 28. Ne6 {[%emt 0:02:00]} Rf7 {[%emt 0:04:41]} 29. Rxf7 {[%emt 0:00:51]}
Kxf7 {[%emt 0:00:07]} 30. Ng5+ {[%emt 0:00:23]} Kf6 {[%emt 0:00:11]} 31. Nxe4+
{[%emt 0:00:34]} fxe4 {[%emt 0:00:06]} 32. Kf1 {[%emt 0:02:37]} Ke5 {[%emt 0:
00:00]} 33. Ke2 {[%emt 0:01:54]} b6 {[%emt 0:04:35]} 34. c6 {[%emt 0:01:42]}
Kd6 {[%emt 0:00:40]} 35. Ke3 {[%emt 0:01:24]} Rxc6 {[%emt 0:00:39]} 36. Rd1+ {
[%emt 0:01:05]} Ke5 {[%emt 0:02:03]} 37. Rd7 {[%emt 0:00:51]} Rc3+ {[%emt 0:00:
00]} 38. Kd2 {[%emt 0:00:26]} Rd3+ {[%emt 0:00:41]} 39. Rxd3 {[%emt 0:00:13]}
exd3 {[%emt 0:00:05]} 40. Kxd3 {[%emt 0:00:12]} b5 {[%emt 0:00:08]} 41. Kc3 {
[%emt 0:32:12]} a5 {[%emt 0:30:08]} 42. Kd3 {[%emt 0:00:20]} Kd5 {[%emt 0:00:
00]} 43. Ke3 {[%emt 0:00:48]} b4 {[%emt 0:00:38]} 44. f4 {[%emt 0:00:37]} gxf3
{[%emt 0:00:10]} 45. Kxf3 {[%emt 0:00:50]} a4 {[%emt 0:00:23]} 46. Ke3 {
[%emt 0:00:12]} b3 {[%emt 0:00:26]} 47. axb3 {[%emt 0:00:19]} a3 {[%emt 0:00:
00]} 0-1

[Event "44th Chess Olympiad Women 2022"]
[Site "Chennai"]
[Date "2022.08.03"]
[Round "6.33"]
[White "Sim, Jia Ru"]
[Black "Yu, Weiyang"]
[Result "1-0"]
[WhiteElo "2005"]
[BlackElo "1504"]
[Annotator "NA RC"]
[PlyCount "73"]
[EventDate "2022.??.??"]
[TimeControl "60"]

1. e4 {[%emt 0:00:04]} c6 {[%emt 0:00:05]} 2. d4 {[%emt 0:00:06]} d5 {[%emt 0:
00:00]} 3. Nd2 {[%emt 0:00:06]} dxe4 {[%emt 0:00:06]} 4. Nxe4 {[%emt 0:00:05]}
Nf6 {[%emt 0:00:05]} 5. Nxf6+ {[%emt 0:00:09]} exf6 {[%emt 0:00:06]} 6. c3 {
[%emt 0:00:21]} Bd6 {[%emt 0:00:04]} 7. Bd3 {[%emt 0:00:15]} O-O {[%emt 0:00:
00]} 8. Ne2 {[%emt 0:00:22]} Re8 {[%emt 0:00:04]} 9. Qc2 {[%emt 0:00:16]} h5 {
[%emt 0:00:05]} 10. Be3 {[%emt 0:00:33]} Nd7 {[%emt 0:00:12]} 11. O-O-O {
[%emt 0:00:50]} Nf8 {[%emt 0:00:07]} 12. Ng3 {[%emt 0:02:23]} g6 {[%emt 0:00:
00]} 13. Ne4 {[%emt 0:02:09]} Be6 {[%emt 0:00:05]} 14. Kb1 {[%emt 0:05:07]} b5
{[%emt 0:02:55]} 15. Nc5 {[%emt 0:03:23]} Bxc5 {[%emt 0:10:26]} 16. dxc5 {
[%emt 0:00:14]} Qa5 {[%emt 0:01:06]} 17. b3 {[%emt 0:02:44]} b4 {[%emt 0:14:24]
} 18. c4 {[%emt 0:22:18]} Qc7 {[%emt 0:11:16]} 19. Bd4 {[%emt 0:01:44]} Kg7 {
[%emt 0:07:39]} 20. Qb2 {[%emt 0:03:30]} Nh7 {[%emt 0:04:26]} 21. f4 {[%emt 0:
00:00]} Qc8 {[%emt 0:06:46]} 22. h3 {[%emt 0:05:17]} a5 {[%emt 0:11:36]} 23. g4
{[%emt 0:10:08]} a4 {[%emt 0:11:19]} 24. f5 {[%emt 0:03:18]} Bd7 {[%emt 0:00:
00]} 25. fxg6 {[%emt 0:01:16]} fxg6 {[%emt 0:01:21]} 26. g5 {[%emt 0:01:42]}
Bf5 {[%emt 0:04:04]} 27. Rhf1 {[%emt 0:02:14]} axb3 {[%emt 0:01:37]} 28. axb3 {
[%emt 0:00:07]} Bxd3+ {[%emt 0:01:14]} 29. Rxd3 {[%emt 0:00:06]} Re6 {[%emt 0:
00:00]} 30. Bxf6+ {[%emt 0:03:00]} Nxf6 {[%emt 0:00:25]} 31. gxf6+ {[%emt 0:00:
00]} Kf7 {[%emt 0:00:22]} 32. Qd2 {[%emt 0:01:20]} Ra7 {[%emt 0:02:19]} 33. Qh6
{[%emt 0:01:08]} Qg8 {[%emt 0:02:13]} 34. Rd8 {[%emt 0:00:38]} Qxd8 {[%emt 0:
00:00]} 35. Qg7+ {[%emt 0:00:07]} Ke8 {[%emt 0:00:12]} 36. f7+ {[%emt 0:00:05]}
Kd7 {[%emt 0:00:14]} 37. f8=Q+ {[%emt 0:00:44]} 1-0

[Event "44th Chess Olympiad Women 2022"]
[Site "Chennai"]
[Date "2022.08.03"]
[Round "6.33"]
[White "Thurner, Anya"]
[Black "Chong, Kai Ni Agnes"]
[Result "1/2-1/2"]
[WhiteElo "1619"]
[BlackElo "1909"]
[Annotator "NA RC"]
[PlyCount "123"]
[EventDate "2022.??.??"]
[TimeControl "60"]

1. e4 {[%emt 0:00:01]} c5 {[%emt 0:00:07]} 2. b3 {[%emt 0:00:06]} g6 {[%emt 0:
00:00]} 3. Bb2 {[%emt 0:00:05]} Nf6 {[%emt 0:00:09]} 4. e5 {[%emt 0:00:05]} Nd5
{[%emt 0:00:11]} 5. Nc3 {[%emt 0:00:10]} Nxc3 {[%emt 0:00:45]} 6. Bxc3 {
[%emt 0:00:08]} Bg7 {[%emt 0:00:12]} 7. f4 {[%emt 0:00:45]} O-O {[%emt 0:00:41]
} 8. Nf3 {[%emt 0:00:28]} Nc6 {[%emt 0:00:53]} 9. Bb5 {[%emt 0:01:54]} d6 {
[%emt 0:04:09]} 10. O-O {[%emt 0:05:22]} Bd7 {[%emt 0:02:22]} 11. exd6 {
[%emt 0:06:03]} exd6 {[%emt 0:00:14]} 12. Bxg7 {[%emt 0:01:06]} Kxg7 {[%emt 0:
00:00]} 13. Kh1 {[%emt 0:01:21]} Qf6 {[%emt 0:02:58]} 14. Ng5 {[%emt 0:17:33]}
d5 {[%emt 0:05:02]} 15. Bxc6 {[%emt 0:03:39]} Bxc6 {[%emt 0:00:19]} 16. d3 {
[%emt 0:01:40]} h6 {[%emt 0:03:35]} 17. Nh3 {[%emt 0:04:46]} d4 {[%emt 0:06:23]
} 18. Qg4 {[%emt 0:10:07]} Rae8 {[%emt 0:12:59]} 19. Rae1 {[%emt 0:02:29]} Re3
{[%emt 0:03:45]} 20. Rxe3 {[%emt 0:09:12]} dxe3 {[%emt 0:00:07]} 21. Qe2 {
[%emt 0:02:19]} Re8 {[%emt 0:01:05]} 22. a4 {[%emt 0:10:37]} a6 {[%emt 0:05:48]
} 23. Ng1 {[%emt 0:06:22]} b5 {[%emt 0:14:59]} 24. axb5 {[%emt 0:02:00]} axb5 {
[%emt 0:00:12]} 25. h3 {[%emt 0:03:30]} Bd7 {[%emt 0:12:43]} 26. Kh2 {[%emt 0:
00:00]} h5 {[%emt 0:01:35]} 27. Rf3 {[%emt 0:06:52]} b4 {[%emt 0:04:48]} 28. g3
{[%emt 0:01:34]} Qd4 {[%emt 0:01:24]} 29. Rf1 {[%emt 0:00:48]} Qb2 {[%emt 0:00:
00]} 30. Nf3 {[%emt 0:00:22]} f6 {[%emt 0:00:40]} 31. Ne1 {[%emt 0:00:27]} Bc6
{[%emt 0:02:32]} 32. Ng2 {[%emt 0:01:05]} Qd4 {[%emt 0:01:52]} 33. Re1 {
[%emt 0:00:32]} Qd5 {[%emt 0:01:03]} 34. Qf1 {[%emt 0:00:28]} Qd4 {[%emt 0:00:
00]} 35. Qe2 {[%emt 0:00:29]} Bxg2 {[%emt 0:03:47]} 36. Kxg2 {[%emt 0:00:12]}
Qc3 {[%emt 0:00:36]} 37. Kf3 {[%emt 0:00:51]} g5 {[%emt 0:00:51]} 38. fxg5 {
[%emt 0:00:25]} fxg5 {[%emt 0:00:10]} 39. Kg2 {[%emt 0:00:06]} Qd2 {[%emt 0:00:
00]} 40. Qxd2 {[%emt 0:00:53]} exd2 {[%emt 0:00:08]} 41. Rd1 {[%emt 0:30:05]}
Re2+ {[%emt 0:30:33]} 42. Kf3 {[%emt 0:00:29]} Rh2 {[%emt 0:00:20]} 43. h4 {
[%emt 0:00:35]} gxh4 {[%emt 0:01:49]} 44. gxh4 {[%emt 0:00:00]} Rxh4 {[%emt 0:
00:00]} 45. Rxd2 {[%emt 0:00:00]} Rg4 {[%emt 0:00:00]} 46. Re2 {[%emt 0:00:00]}
Kf6 {[%emt 0:00:00]} 47. Re8 {[%emt 0:00:00]} Rg5 {[%emt 0:00:00]} 48. Re4 {
[%emt 0:15:37]} Rd5 {[%emt 0:00:00]} 49. Rc4 {[%emt 0:00:00]} Kf5 {[%emt 0:00:
00]} 50. Kg3 {[%emt 0:00:00]} Kg5 {[%emt 0:00:00]} 51. Kh3 {[%emt 0:00:00]} Re5
{[%emt 0:00:00]} 52. Kg3 {[%emt 0:00:00]} Kf5 {[%emt 0:00:00]} 53. Kf3 {
[%emt 0:00:00]} Rd5 {[%emt 0:00:00]} 54. Kg3 {[%emt 0:00:00]} Ke5 {[%emt 0:00:
00]} 55. Kf3 {[%emt 0:00:00]} Kd6 {[%emt 0:00:00]} 56. Rh4 {[%emt 0:00:00]} Rg5
{[%emt 0:01:01]} 57. Kf2 {[%emt 0:00:00]} Kd5 {[%emt 0:01:02]} 58. Kf3 {
[%emt 0:00:00]} Ke5 {[%emt 0:00:53]} 59. Re4+ {[%emt 0:00:00]} Kf5 {[%emt 0:00:
00]} 60. Rf4+ {[%emt 0:00:00]} Ke5 {[%emt 0:01:01]} 61. Re4+ {[%emt 0:00:00]}
Kd5 {[%emt 0:00:39]} 62. Rh4 {[%emt 0:00:00]} 1/2-1/2

[Event "44th Chess Olympiad Women 2022"]
[Site "Chennai"]
[Date "2022.08.03"]
[Round "6.34"]
[White "Guerrero Rodriguez, Alejandra"]
[Black "Almanzar Vasquez, Jeniffer Maria"]
[Result "1-0"]
[WhiteElo "2006"]
[BlackElo "1762"]
[Annotator "NA RC"]
[PlyCount "37"]
[EventDate "2022.??.??"]
[TimeControl "60"]

1. e4 {[%emt 0:00:30]} e5 {[%emt 0:00:07]} 2. Nf3 {[%emt 0:00:08]} Nc6 {
[%emt 0:00:09]} 3. Bb5 {[%emt 0:00:33]} a6 {[%emt 0:00:17]} 4. Ba4 {[%emt 0:00:
00]} Nf6 {[%emt 0:00:16]} 5. O-O {[%emt 0:00:27]} Bc5 {[%emt 0:00:28]} 6. c3 {
[%emt 0:01:46]} b5 {[%emt 0:00:35]} 7. Bb3 {[%emt 0:00:08]} d6 {[%emt 0:00:35]}
8. d4 {[%emt 0:02:04]} Bb6 {[%emt 0:01:07]} 9. Be3 {[%emt 0:01:27]} Bb7 {
[%emt 0:05:55]} 10. d5 {[%emt 0:09:52]} Bxe3 {[%emt 0:05:30]} 11. dxc6 {
[%emt 0:00:39]} Bxf2+ {[%emt 0:01:34]} 12. Rxf2 {[%emt 0:00:34]} Bxc6 {[%emt 0:
00:00]} 13. Nbd2 {[%emt 0:01:26]} Nxe4 {[%emt 0:03:22]} 14. Nxe4 {[%emt 0:00:
00]} Bxe4 {[%emt 0:00:31]} 15. Bxf7+ {[%emt 0:00:18]} Ke7 {[%emt 0:06:40]} 16.
Ng5 {[%emt 0:02:25]} Bb7 {[%emt 0:05:43]} 17. Ne6 {[%emt 0:00:57]} Qd7 {
[%emt 0:01:33]} 18. Qg4 {[%emt 0:01:29]} Qc6 {[%emt 0:01:01]} 19. Qxg7 {
[%emt 0:01:23]} 1-0